Cogmind - Beta 13 @@@ ROGUE MODE // 2024.04.24 @ 17:33:51 Player: Phil Result: Destroyed by G-47 Trooper with Particle Gun Performance ------------- Evolutions (2) 1000 Regions Visited (3) 600 Robots Destroyed (35) 175 Value Destroyed (958) 958 Prototype IDs (0) 0 Alien Tech Used (0) 0 Bonus (74) 74 TOTAL SCORE: 2807 Bonus ------- High Alert Combat Kills 74 Cogmind --------- Core Integrity 0/550 Matter 300/300 Energy 100/100 System Corruption 0% Temperature Cool (9) Movement Core (200) Ox3 Location -8/Materials Parts ------- > --- POWER (1) -------- (None) > --- PROPULSION (4) --- (None) > --- UTILITY (4) ------ Medium Storage Unit Improved Utility Shielding > --- WEAPON (2) ------- (None) > --- INVENTORY (10) --- Wheel Compact Wheel Peak State ------------ > --- POWER ------------ Light Ion Engine > --- PROPULSION ------- Aluminum Leg Aluminum Leg Aluminum Leg > --- UTILITY ---------- Medium Storage Unit Improved Utility Shielding Tractor Beam > --- WEAPON ----------- EM Pulse Gun Assault Rifle > --- INVENTORY -------- Light Ion Engine Aluminum Leg Wheel Compact Wheel Beam Rifle Light Assault Rifle Light Assault Rifle Heavy Assault Rifle Grenade Launcher [Rating: 12] Favorites ----------- Power Light Ion Engine Engine Light Ion Engine Propulsion Aluminum Leg Leg Aluminum Leg Utility Medium Storage Unit Device Tractor Beam Storage Medium Storage Unit Protection Improved Utility Shielding Weapon EM Pulse Gun Energy Gun EM Pulse Gun Ballistic Gun Assault Rifle Launcher Grenade Launcher Build | -11 -10 -9 -8 ------- Run | Yrd Mat Mat Mat Slots Evolved 4 | . . 2 2 Power . | . . . . Propulsion 2 | . . 1 1 Utility 2 | . . 1 1 Weapon . | . . . . Parts Attached 23 | 7 4 3 9 Power 3 | 1 . . 2 Engine 3 | 1 . . 2 Core . | . . . . Reactor . | . . . . Propulsion 5 | 2 . 1 2 Treads . | . . . . Leg 5 | 2 . 1 2 Wheel . | . . . . Hover . | . . . . Flight . | . . . . Utility 4 | 1 2 . 1 Device 1 | . 1 . . Storage 2 | 1 1 . . Processor . | . . . . Hackware . | . . . . Protection 1 | . . . 1 Artifact . | . . . . Weapon 11 | 3 2 2 4 Energy Gun 2 | 1 . . 1 Energy Cannon . | . . . . Ballistic Gun 6 | 2 1 1 2 Ballistic Cannon . | . . . . Launcher 3 | . 1 1 1 Special Weapon . | . . . . Impact Weapon . | . . . . Slashing Weapon . | . . . . Piercing Weapon . | . . . . Special Melee Weapon . | . . . . Unidentified Prototypes . | . . . . Parts Lost 17 | . . . 17 Power 4 | . . . 4 Propulsion 5 | . . . 5 Utility 1 | . . . 1 Weapon 7 | . . . 7 Highest Loss Streak 13 | . . . 13 To Critical Strikes . | . . . . Average Slot Usage (%) 83 | . 95 88 66 Engine 10 | . 14 11 7 Leg 27 | . 28 33 20 Device 8 | . 9 11 5 Storage 11 | . 14 11 9 Protection 2 | . . . 8 Energy Gun 10 | . 14 11 4 Ballistic Gun 8 | . 9 8 6 Launcher 3 | . 4 2 3 Naked Turns . | . . . . Heaviest Build 21 | 12 19 19 21 Greatest Support 40 | 20 20 30 40 Greatest Overweight (x) 5 | 3 . . 5 Average Overweight (x) . | . . . . Largest Inventory Capacity 10 | 8 10 10 10 Average Capacity 9 | 7 9 10 10 Most Carried 10 | 4 9 10 10 Average Carried 6 | 2 7 9 5 Final Capacity 10 | 8 10 10 10 Final Carried 10 | 4 9 10 2 Class Distribution -------------------- 100% | Mutant Dominant Class ---------------- Mutant | -10/Materials Mutant | -9/Materials Mutant | -8/Materials Resources | -11 -10 -9 -8 ----------- Run | Yrd Mat Mat Mat Matter Collected 691 | 273 103 89 226 Remotely 366 | . 84 89 193 Salvage Created 852 | 65 178 240 369 Parts 67 | 2 12 32 21 Haulers Intercepted 1 | . 1 . . Recyclers Shooed . | . . . . Parts Field Recycled . | . . . . Retrieved Matter . | . . . . Parts Self-Destructed . | . . . . Prevented . | . . . . Kills | -11 -10 -9 -8 ------- Run | Yrd Mat Mat Mat Combat Hostiles Destroyed 28 | . 4 7 17 Guns 16 | . 2 6 8 AOE 11 | . 2 1 8 Classes Destroyed 7 | 1 3 3 . Builder 3 | . . 3 . Hauler 1 | . 1 . . Recycler 1 | 1 . . . Watcher 2 | . 1 . 1 Swarmer 11 | . . 3 8 Grunt 15 | . 4 3 8 Sentry 2 | . . 1 1 Best Kill Streak 7 | 1 4 7 7 Combat Bots Only 7 | . 2 5 7 Max Kills in Single Turn 4 | 1 1 3 4 Gunslinging . | . . . . Exploded 4 | . 1 1 4 Melee . | . . . . Uniques/NPCs Destroyed . | . . . . Combat | -11 -10 -9 -8 -------- Run | Yrd Mat Mat Mat Hostile Shots Fired 203 | . 17 27 159 Missed 60 | . 8 6 46 Damage Taken 1928 | . 100 233 1595 Core 626 | . 33 43 550 Absorbed by Shields . | . . . . Redirected to Shielding 71 | . . . 71 Core Remaining (%) 91 | 100 86 89 . Volleys Fired 81 | 1 16 18 46 Largest 2 | 2 2 2 2 Hottest 70 | 60 70 70 56 Shots Fired 144 | 2 30 36 76 Gun 123 | 2 27 31 63 Cannon . | . . . . Launcher 21 | . 3 5 13 Special . | . . . . Kinetic 55 | 1 11 13 30 Thermal 33 | . . . 33 Explosive 21 | . 3 5 13 Electromagnetic 35 | 1 16 18 . Robot Hit Streak 16 | 2 4 8 16 Robot Miss Streak 5 | . 4 5 2 Penetration Max . | . . . . Secondary Targets 1 | . . . 1 Max Gunslinging Chain 1 | . . . 1 Shots Hit Robots 91 | 2 17 20 52 Core Hits 71 | 2 12 15 42 Critical Kills . | . . . . Critical Parts Destroyed . | . . . . Critical Strikes 1 | . . 1 . Corrupt 1 | . . 1 . Melee Attacks . | . . . . Impact . | . . . . Slashing . | . . . . Piercing . | . . . . Sneak Attacks . | . . . . Combat Hostiles . | . . . . Follow-up Attacks . | . . . . Damage Inflicted 2530 | 25 333 781 1391 Guns 869 | 25 193 217 434 Cannons . | . . . . Explosions 1657 | . 136 564 957 Melee . | . . . . Ramming 4 | . 4 . . Kinetic 320 | 13 72 56 179 Thermal 632 | . . 377 255 Explosive 1280 | . 136 187 957 Electromagnetic 294 | 12 121 161 . Impact . | . . . . Slashing . | . . . . Piercing . | . . . . Highest Corruption . | . . . . Average Corruption . | . . . . Corruption Purged . | . . . . Corruption Blocked . | . . . . Overload Shots . | . . . . Overflow Damage 189 | . . 151 38 Projectiles . | . . . . Explosions 189 | . . 151 38 Melee . | . . . . Knockbacks . | . . . . Impact . | . . . . Kinetic . | . . . . Secondary . | . . . . Self-Inflicted Damage 34 | . . . 34 Shots 2 | . . . 2 Rammed . | . . . . Targets Rammed 1 | . 1 . . Kicked 1 | . 1 . . Crushed . | . . . . Highest Temperature 39 | . 36 12 39 Average Temperature 12 | . 19 5 10 Received Heat Transfer 957 | . 54 93 810 Siege Activations . | . . . . Robots Corrupted . | . . . . Combat Hostiles . | . . . . Parts Fried . | . . . . Impact Corruptions . | . . . . Robots Melted 1 | . . . 1 Combat Hostiles 1 | . . . 1 Parts Melted 3 | . . . 3 Heat Transferred 1125 | . . 200 925 Parts Sabotaged . | . . . . Parts Stolen . | . . . . Parts Stripped . | . . . . Power Chain Reactions . | . . . . Alert | -11 -10 -9 -8 ------- Run | Yrd Mat Mat Mat Peak Influence 572 | 5 188 430 572 Initial 181 | . 3 79 181 Average 220 | 1 117 202 412 Maximum Alert Level 2 | . . 2 2 Low Security (%) 62 | 100 100 61 10 Level 1 16 | . . 25 31 Level 2 21 | . . 13 58 Level 3 . | . . . . Level 4 . | . . . . Level 5 . | . . . . High Security . | . . . . Max Security . | . . . . Squads Dispatched 7 | . 1 2 4 Investigation 3 | . . . 3 Extermination . | . . . . Reinforcement 4 | . 1 2 1 Assault . | . . . . Garrison . | . . . . Intercept . | . . . . Searches Triggered . | . . . . Construction Impeded 1 | . . 1 . Haulers Reinforced . | . . . . Active Scanning Responses . | . . . . Cargo Convoy Interrupts . | . . . . Stealth | -11 -10 -9 -8 --------- Run | Yrd Mat Mat Mat Distress Signals 2 | . 1 1 . Communications Jammed . | . . . . Distress Signals . | . . . . Times Spotted 45 | . 9 11 25 Peak Tracking Total 7 | . 3 4 7 Tactical Retreats . | . . . . Traps | -11 -10 -9 -8 ------- Run | Yrd Mat Mat Mat Traps Triggered . | . . . . Indirectly . | . . . . Trap Hack Attempts . | . . . . Triggered . | . . . . Disarmed . | . . . . Reprogrammed . | . . . . Reused . | . . . . Traps Extracted . | . . . . Installed . | . . . . Triggered . | . . . . Machines | -11 -10 -9 -8 ---------- Run | Yrd Mat Mat Mat Machines Disabled 8 | . . 4 4 Max in Single Turn 2 | . . 2 1 Machines Repaired . | . . . . Machines Dismantled . | . . . . Machines Sabotaged . | . . . . Overloaded Fab Kills . | . . . . Hacking | -11 -10 -9 -8 --------- Run | Yrd Mat Mat Mat Machines Accessed 5 | . . 2 3 Terminals 3 | . . 2 1 Fabricators . | . . . . Repair Stations 1 | . . . 1 Recycling Units 1 | . . . 1 Scanalyzers . | . . . . Garrison Access . | . . . . Total Hacks 15 | . . 3 12 Successful 8 | . . 2 6 Failed 7 | . . 1 6 Catastrophic . | . . . . Database Lockouts . | . . . . Manual . | . . . . Terminals 7 | . . 3 4 Fabricators . | . . . . Repair Stations 3 | . . . 3 Recycling Units 5 | . . . 5 Scanalyzers . | . . . . Garrison Access . | . . . . Terminal Hacks 3 | . . 2 1 Record 1 | . . . 1 Alert Level 1 | . . 1 . Locate Traps 1 | . . 1 . Fabricator Hacks . | . . . . Repair Station Hacks 2 | . . . 2 Scan Component 1 | . . . 1 Refit 1 | . . . 1 Recycling Unit Hacks 3 | . . . 3 Report Inventory 1 | . . . 1 Retrieve Matter 1 | . . . 1 Retrieve Components 1 | . . . 1 Scanalyzer . | . . . . Garrison Access Hacks . | . . . . Unauthorized Hacks . | . . . . Terminals . | . . . . Fabricators . | . . . . Repair Stations . | . . . . Recycling Units . | . . . . Scanalyzers . | . . . . Garrison Access . | . . . . Data Cores Recovered . | . . . . Used . | . . . . Hacking Detections 4 | . . 1 3 Full Trace Events 3 | . . . 3 Feedback Events . | . . . . Feedback Blocked . | . . . . Robot Schematics Acquired . | . . . . Robots Built . | . . . . Authchips . | . . . . Time . | . . . . Total Robot Build Rating . | . . . . Part Schematics Acquired . | . . . . Parts Built . | . . . . Authchips . | . . . . Time . | . . . . Total Part Build Rating . | . . . . Parts Repaired . | . . . . Time . | . . . . Parts Recycled . | . . . . Recycled Matter . | . . . . Retrieved Matter . | . . . . Retrieved Components . | . . . . Parts Scanalyzed . | . . . . Part Schematics Acquired . | . . . . Parts Damaged . | . . . . Bothacking | -11 -10 -9 -8 ------------ Run | Yrd Mat Mat Mat Used RIF Installer . | . . . . Robots Hacked . | . . . . Non-combat . | . . . . Combat . | . . . . Robot Hacks Applied . | . . . . Relay Couplers Released . | . . . . Fabnet Peak Effective % . | . . . . Robots Rewired . | . . . . Allies Hacked . | . . . . Hacks Repelled . | . . . . Allies | -11 -10 -9 -8 -------- Run | Yrd Mat Mat Mat Total Allies . | . . . . Largest Group . | . . . . Highest-Rated Group . | . . . . Highest-Rated Ally . | . . . . Total Orders . | . . . . Ally Attacks . | . . . . Total Damage . | . . . . Kills . | . . . . Allies Corrupted . | . . . . Allies Melted . | . . . . Intel | -11 -10 -9 -8 ------- Run | Yrd Mat Mat Mat Robot Analysis Total . | . . . . Derelict Logs Recovered . | . . . . Drone Launches . | . . . . Drone Recoveries . | . . . . Exploration | -11 -10 -9 -8 ------------- Run | Yrd Mat Mat Mat Turns Passed 886 | 75 297 247 267 Spaces Moved 479 | 47 189 139 104 Core 18 | 14 . . 4 Treads . | . . . . Legs 461 | 33 189 139 100 Wheels . | . . . . Hover . | . . . . Flight . | . . . . Fastest Speed 50 | 50 120 120 120 Average Speed 122 | 122 120 120 131 Slowest Speed 300 | 200 120 120 300 Overloaded Moves . | . . . . Propulsion Burnouts . | . . . . Robots Hopped . | . . . . Cave-ins Triggered . | . . . . Exploration Rate (%) 19 | 4 34 22 16 Regions Visited 3 Branch Regions . Pre-discovered Areas . | . . . . Known Exits Taken . | . . . . Unknown Exits Taken 3 | 1 1 1 . Scrap Searched . | . . . . Spaces Dug . | . . . . Terrain Destroyed 109 | . 26 57 26 Melee . | . . . . Projectile . | . . . . AOE 109 | . 26 57 26 Terrain Rammed . | . . . . Walls Destroyed . | . . . . Machines Disabled . | . . . . Actions | -11 -10 -9 -8 --------- Run | Yrd Mat Mat Mat Total 633 | 58 229 182 164 Wait 30 | . 8 20 2 Move 476 | 46 188 138 104 Hop . | . . . . Pick Up 16 | 4 9 2 1 Fast Attach 9 | 6 . 1 2 Attach 8 | . 1 . 7 Detach . | . . . . Swap 6 | 1 3 2 . Drop 6 | . 3 1 2 Fire 81 | 1 16 18 46 Melee . | . . . . Ram . | . . . . Kick 1 | . 1 . . Crush . | . . . . Escape Stasis . | . . . . Rewire . | . . . . Trap . | . . . . Miscellaneous . | . . . . Route ------- -11/Scrapyard -10/Materials -9/Materials -8/Materials History --------- Turn | Location | Event 28 | -11/Scrapyard | Discovered new exit (range 14) 76 | -11/Scrapyard | Entered Materials 242 | -10/Materials | Discovered new exit (range 15) 304 | -10/Materials | Build established: Mutant 373 | -10/Materials | Entered another Materials area 373 | -9/Materials | Evolved 2 slots: Propulsion x1, Utility x1 602 | -9/Materials | Discovered new exit (range 5) 620 | -9/Materials | Entered another Materials area 620 | -8/Materials | Evolved 2 slots: Propulsion x1, Utility x1 823 | -8/Materials | Core integrity fell below 50% 838 | -8/Materials | Core integrity fell below 20% 871 | -8/Materials | Lost 13 parts (3p4n1u5w) 872 | -8/Materials | Destroyed 7 combat bots 887 | -8/Materials | Destroyed by G-47 Trooper with Particle Gun Last Messages --------------- Flight Unit melted. S-10 Pest destroyed. Acquired Lgt. Ion Engine. K-01 Serf collects debris. K-01 Serf cleans the Processing Tank. Acquired Aluminum Leg. Acquired 33 matter. K-01 Serf collects debris. U-05 Engineer lays Concrete. Beam Rifle destroyed. U-05 Engineer lays Concrete. K-01 Serf collects debris. U-05 Engineer lays Concrete. Lgt. Ion Engine destroyed. U-05 Engineer lays Concrete. K-01 Serf collects debris. U-05 Engineer lays Concrete. Aluminum Leg destroyed. U-05 Engineer lays Concrete. K-01 Serf collects debris. Map ----- +----------------------------------------------------+ | ??????????????????????????????????????????? | | ??????????????????????????????????????????? | | ??????????????????????????????????????????? | | ??????????????????????????????????????????? | | ??????????????????????????????????????????? | | ??????????????????????????????????????????? | | ??????????????????????????????????????????? | | ??????????????????????????????????????????? | | ??????????????????????????????????????????? | | ??????????????????????????????????????????? | | ???########??###########??????????????????? | | ???# #??# [[=%=#??????????????????? | | ???# #???# """%#??????????????????? | | ???# """ #???# "R" #??????????????????? | | ???#! """ #???# "["[#??????????????????? | | ???# """ #???# !%[#??????????????????? | | ???# #???# """""! #??????????????????? | | ???####+###???# """""%*#??????????????????? | | ???# #???### """""% #??????????????????? | | ???# #???# #??????????????????? | | ???# ##### # #g######### #???????????? | | ???# k%t g #???????????? | | ???# #####[ k #???????????? | | ??##+##+##### #???????????? | | ??# # "Y" """ """ #???????????? | | ??# # @ """ """ #???????????? | | ??# # m """ """ #???????????? | | ??# ##??????????? | | ??# """ " #??????????? | | ??# """ """ !!! #??????????? | | ??# """ ] ! """ !! ##?????????? | | ??# !* u """ !! #?????????? | | ??###### = # #?????????? | | ?????? %#### #?????????? | | ?????? #??# """= """ """ ??????????? | | ???????# #### """=[""" """ #?????????? | | ???????# "" %=""" """ #?????????? | | ???????+ #?????????? | | ???????# #?????????? | | ???????### #?????????? | | ?????????# #?????????? | | ?????????# """ #?????????? | | ?????????# """ ######+###?????????? | | ?????????# """ #??????????????????? | | ?????????# """ #??????????????????? | | ?????????# #??????????????????? | | ?????????# #??????????????????? | | ?????????# """ #??????????????????? | | ?????????# "" #??????????????????? | | ?????????# """ #??????????????????? | +----------------------------------------------------+ Best States ------------- Heat Dissipation 31 Energy Generation 10 Energy Capacity 125 Matter Stores 300 Matter Capacity 300 Sight Range 16 Terrain Scan Density 10 Utility Shielding 66 Evasion (%) 55 Item Schematics ----------------- None Robot Schematics ------------------ None Fabricated ------------ Nothing Alien Tech Used ----------------- None Achievements -------------- It's Just You One Hack Too Far Use The Force Challenges ------------ None Game ------ Seed FactoryImprinterSuperbattery Manual? 0 Play Time 00:16:11 Cumulative 1.6 hours Start 2024.04.24 @ 17:19:04 End 2024.04.24 @ 17:33:51 Sessions 1 Manual Loads 0 Difficulty Rogue Special Mode None Game No. 7 Rogue 5 Adventurer 2 Explorer 0 Win Type - Total 0 Types 0/0/0/0/0/0/0/0/0 Lore% 8 Gallery% 4 Achievement% 7 Wizard Run 0 Options --------- Layout 2 ASCII 0 Keyboard 0 Movement Numpad Keybinds 0 Fullscreen 1 Font 24/Smallcaps Map View 50x44 Zoom Use 0% Tactical HUD 0 Map Filters NONE Filters NONE Steam 1 RUN: 32369c10-99f2-4484-a154-5cf16d974a40